bitfinex/quotes_BTCUSD_20240905
["timestamp","ask_amount","ask_price","bid_price","bid_amount"]
[1725550855920,0.27021428,56223.0,56215.0,0.3942]
[1725550856131,0.177885,56216.0,56215.0,0.016]
[1725550856363,0.533655,56216.0,56215.0,0.016]
[1725550856587,0.89802415,56216.0,56215.0,0.002]
[1725550856878,1.51419415,56216.0,56215.0,0.002]
[1725550857084,1.51419415,56216.0,56215.0,0.016]
[1725550857519,0.89802415,56216.0,56215.0,0.016]
[1725550857752,0.18648415,56216.0,56215.0,0.014]
[1725550857977,0.89802415,56216.0,56215.0,0.014]
[1725550858407,0.89802415,56216.0,56206.0,0.177915]
[1725550858408,0.177904,56211.0,56206.0,0.177915]
[1725550858622,0.36436915,56216.0,56211.0,0.177899]
[1725550858623,0.36536915,56216.0,56211.0,0.177899]
[1725550858831,0.35777,56216.0,56215.0,0.014]
[1725550859034,0.535658,56216.0,56215.0,0.014]
[1725550859244,0.534658,56216.0,56215.0,0.014]
[1725550859482,0.890428,56216.0,56215.0,0.028]
[1725550860161,0.001,56216.0,56215.0,0.028]
[1725550860385,0.178885,56216.0,56215.0,0.028]
[1725550860627,0.001,56216.0,56215.0,0.028]
[1725550860841,0.001,56216.0,56215.0,0.561664]
[1725550861265,0.001,56216.0,56215.0,0.028]
[1725550861477,0.001,56216.0,56215.0,0.205888]
[1725550861718,0.001,56216.0,56215.0,0.028]
[1725550861964,1.704595,56216.0,56215.0,0.028]
[1725550862414,1.727595,56216.0,56215.0,0.028]
[1725550862844,1.704595,56216.0,56215.0,0.028]
[1725550863075,1.74396692,56216.0,56215.0,0.014]
[1725550863578,1.38919692,56216.0,56215.0,0.027]
[1725550863816,1.37364,56216.0,56215.0,0.027]
[1725550864049,1.72941,56216.0,56215.0,0.027]
[1725550864294,1.72841,56216.0,56215.0,0.013]
[1725550864501,1.74478283,56216.0,56215.0,0.013]
[1725550864711,1.74578283,56216.0,56215.0,0.026]
[1725550864938,1.74478283,56216.0,56215.0,0.013]
[1725550865173,1.74578283,56216.0,56215.0,0.026]
[1725550866115,2.10155283,56216.0,56215.0,0.026]
[1725550866355,2.10155283,56216.0,56202.0,0.00163]
[1725550866356,0.88963,56203.0,56202.0,0.00163]
[1725550866605,1.99089628,56203.0,56202.0,0.00163]
[1725550866849,2.0072657,56203.0,56202.0,0.00163]
[1725550867055,2.01389628,56203.0,56202.0,0.00163]
[1725550867294,2.03876158,56203.0,56202.0,0.00163]
[1725550867504,2.02239329,56203.0,56202.0,0.00163]
[1725550867929,2.03875983,56203.0,56202.0,0.00163]
[1725550869181,2.03975669,56203.0,56202.0,0.01463]
[1725550869422,2.02339329,56203.0,56202.0,0.01463]
[1725550869810,2.66581726,56203.0,56202.0,0.01763]
[1725550870215,2.39560298,56203.0,56202.0,0.01763]
[1725550870631,2.66581726,56203.0,56202.0,0.01763]
[1725550870840,2.67581726,56203.0,56202.0,0.01763]
[1725550871059,3.03366926,56203.0,56202.0,0.01763]
[1725550871251,2.67781726,56203.0,56202.0,0.01763]
[1725550871502,2.67581726,56203.0,56202.0,0.01763]
[1725550871718,3.03166926,56203.0,56202.0,0.01763]
[1725550871925,2.071419,56200.0,56199.0,0.00162]
[1725550872154,2.094419,56200.0,56199.0,0.00162]
[1725550872375,2.4749966,56200.0,56199.0,0.00162]
[1725550873061,0.177954,56194.0,56193.0,0.00162]
[1725550873309,0.177954,56194.0,56168.0,0.01671941]
[1725550873310,0.889852,56189.0,56171.0,0.268226]
[1725550873546,1.87194828,56189.0,56182.0,0.52650515]
[1725550873764,1.90323515,56189.0,56171.0,0.275361]
[1725550874215,1.54729415,56189.0,56171.0,0.275361]
[1725550874419,2.37333515,56189.0,56171.0,0.008761]
[1725550875108,2.74564733,56189.0,56171.0,0.001626]
[1725550875329,1.245905,56184.0,56171.0,0.001626]
[1725550875546,2.34219228,56184.0,56171.0,0.001626]
[1725550875775,2.35045341,56184.0,56171.0,0.001626]
[1725550876003,2.35045341,56184.0,56177.0,0.2834]
[1725550876004,1.19140741,56184.0,56177.0,0.2834]
[1725550876234,1.16840741,56184.0,56177.0,0.461407]
[1725550876455,1.16840741,56184.0,56171.0,0.357679]
[1725550876456,1.52438041,56184.0,56171.0,0.357679]
[1725550876721,1.54738041,56184.0,56172.0,0.2834]
[1725550877833,1.54738041,56184.0,56172.0,0.461424]
[1725550878075,1.54738041,56184.0,56172.0,0.2834]
[1725550878292,1.54838041,56184.0,56171.0,0.001626]
[1725550879228,1.54838041,56184.0,56171.0,0.179653]
[1725550879481,0.81343441,56184.0,56180.0,0.266]
[1725550879949,0.27947541,56184.0,56180.0,0.266]
[1725550880163,0.00926113,56184.0,56183.0,1.090973]
[1725550880387,0.00926113,56184.0,56183.0,1.62246296]
[1725550880610,0.001,56184.0,56183.0,1.55198396]
[1725550881083,0.001,56184.0,56183.0,1.19600496]
[1725550881316,0.00828095,56184.0,56183.0,0.84002596]
[1725550881545,0.001,56184.0,56183.0,1.19600496]
[1725550881768,0.001,56184.0,56183.0,1.55198396]
[1725550881997,0.27021428,56189.0,56183.0,0.844505]
[1725550882223,0.27021428,56189.0,56183.0,0.666515]
[1725550882224,0.001,56184.0,56183.0,0.666515]
[1725550882569,0.001,56184.0,56183.0,1.90996296]
[1725550882709,0.001,56184.0,56183.0,1.90796296]
[1725550882936,0.002,56184.0,56183.0,1.90996296]
[1725550883167,0.001,56184.0,56183.0,1.90996296]
[1725550883411,0.001,56184.0,56183.0,2.00996296]
[1725550884306,0.27021428,56197.0,56192.0,0.2873]
[1725550884757,0.27021428,56197.0,56192.0,0.465258]
[1725550884758,0.177948,56196.0,56192.0,0.465258]
[1725550885001,0.02788676,56199.0,56193.0,0.36731096]
[1725550885220,0.177923,56204.0,56200.0,0.177933]
[1725550885434,0.177923,56204.0,56196.0,0.355893]
[1725550885435,0.27021428,56205.0,56196.0,0.355893]
[1725550885656,0.27021428,56205.0,56193.0,0.36731096]
[1725550885657,0.177946,56197.0,56193.0,0.369758]
[1725550885903,0.177942,56198.0,56194.0,0.177954]
[1725550886127,0.001,56196.0,56194.0,0.177954]
[1725550886364,0.001,56196.0,56195.0,0.177951]
[1725550886627,0.355873,56200.0,56183.0,0.275226]
[1725550886628,0.45521428,56197.0,56183.0,0.275226]
[1725550886826,0.45521428,56197.0,56183.0,0.001626]
[1725550886827,1.16014628,56184.0,56183.0,0.001626]
[1725550887249,1.51611928,56184.0,56183.0,0.001626]
[1725550887709,1.70111928,56184.0,56183.0,0.001626]
[1725550888366,1.70111928,56184.0,56183.0,0.015626]
[1725550888367,2.08087808,56184.0,56183.0,0.015626]
[1725550889043,2.08187808,56184.0,56183.0,0.015626]
[1725550889251,2.08087808,56184.0,56183.0,0.001626]
[1725550889682,2.08087808,56184.0,56171.0,0.001626]
[1725550889683,1.246171,56172.0,56171.0,0.001626]
[1725550889972,2.25439956,56172.0,56171.0,0.001626]
[1725550890148,2.73344856,56172.0,56171.0,0.001626]
[1725550890579,2.10718528,56172.0,56171.0,0.001626]
[1725550891012,2.13508282,56172.0,56171.0,0.001626]
[1725550891688,2.13508282,56172.0,56171.0,0.006626]
[1725550891941,1.56728282,56172.0,56171.0,0.006626]
[1725550892168,1.56728282,56172.0,56171.0,0.272426]
[1725550892169,0.83218482,56172.0,56171.0,0.272426]
[1725550892368,1.18823382,56172.0,56171.0,0.006626]
[1725550892582,0.02789754,56172.0,56171.0,0.006626]
[1725550892822,0.001,56172.0,56171.0,0.012626]
[1725550893044,0.27121428,56172.0,56171.0,0.18813696]
[1725550893289,0.179024,56172.0,56171.0,0.012626]
[1725550893515,0.356028,56176.0,56171.0,0.006626]
[1725550893761,0.356026,56176.0,56171.0,0.001626]
[1725550893984,0.001,56172.0,56171.0,0.007626]
[1725550894215,0.002,56172.0,56171.0,0.671853]
[1725550894439,0.002,56172.0,56171.0,0.493826]
[1725550894647,0.001,56172.0,56171.0,0.485826]
[1725550894849,0.001,56172.0,56171.0,0.493826]
[1725550895339,0.001,56176.0,56171.0,0.487826]
[1725550895340,0.178018,56174.0,56171.0,0.487826]
[1725550895551,0.178018,56174.0,56171.0,0.479826]
[1725550895737,0.001,56172.0,56171.0,0.485826]
[1725550895987,0.178022,56173.0,56171.0,0.479826]
[1725550896223,0.44823828,56172.0,56171.0,0.479826]
[1725550896440,0.80528728,56172.0,56171.0,0.292726]
[1725550896899,0.44923828,56172.0,56171.0,0.292726]
[1725550897120,0.44923828,56172.0,56171.0,0.99631896]
[1725550897121,0.001,56172.0,56171.0,0.99631896]
[1725550897361,0.27021428,56184.0,56174.0,0.356033]
[1725550897586,0.0188354,56190.0,56183.0,0.643178]
[1725550897815,0.27021428,56192.0,56184.0,0.1874]
[1725550898040,0.01837664,56191.0,56184.0,0.1874]
[1725550898252,0.178786,56189.0,56184.0,0.1874]
[1725550898491,0.177977,56187.0,56184.0,0.1874]
[1725550898704,0.000815,56189.0,56184.0,0.1874]
[1725550898930,0.177981,56186.0,56184.0,0.1874]
[1725550899167,0.000815,56189.0,56184.0,0.1874]
[1725550899381,0.356761,56189.0,56184.0,0.1874]
[1725550899598,0.177979,56187.0,56184.0,0.1874]
[1725550899814,0.355949,56188.0,56184.0,0.1874]
[1725550899815,0.17798,56186.0,56184.0,0.1874]
[1725550900038,0.000815,56189.0,56184.0,0.1914]
[1725550900266,0.177978,56187.0,56184.0,0.1914]
[1725550900490,0.178786,56189.0,56184.0,0.1914]
[1725550900702,0.000815,56189.0,56184.0,0.71888396]
[1725550900912,0.000815,56189.0,56187.0,0.177976]
[1725550901152,0.000815,56189.0,56187.0,0.176976]
[1725550901369,0.000815,56189.0,56185.0,0.17551096]
[1725550901370,0.003815,56189.0,56185.0,0.17551096]
[1725550901610,0.003815,56189.0,56186.0,0.177979]
[1725550902089,0.003815,56189.0,56187.0,0.177976]
[1725550902327,0.003815,56189.0,56186.0,0.17798]
[1725550902556,0.000815,56189.0,56186.0,0.17798]
[1725550903050,0.000815,56189.0,56185.0,0.17551096]
[1725550903051,0.001815,56189.0,56187.0,0.188975]
[1725550903273,0.001815,56189.0,56188.0,0.53392]
[1725550903501,0.001815,56189.0,56188.0,0.35348396]
[1725550903955,0.001815,56189.0,56188.0,0.70943096]
[1725550904184,0.001815,56189.0,56188.0,0.97453096]
[1725550904412,0.000815,56189.0,56188.0,1.33047796]
[1725550904643,0.002815,56189.0,56188.0,0.98853096]
[1725550905106,0.001815,56189.0,56188.0,0.98853096]
[1725550905350,0.001815,56189.0,56188.0,1.00253096]
[1725550905623,0.002815,56189.0,56188.0,0.64658396]
[1725550905841,0.002815,56189.0,56188.0,1.00253096]
[1725550906288,0.002815,56189.0,56188.0,0.64658396]
[1725550906519,0.714697,56189.0,56188.0,0.028]
[1725550906752,0.892667,56189.0,56188.0,0.028]
[1725550906988,1.248608,56189.0,56188.0,0.028]
[1725550908439,1.271608,56189.0,56188.0,0.028]
[1725550908667,0.892667,56189.0,56188.0,0.028]
[1725550909589,0.177983,56185.0,56184.0,0.2652]
[1725550910496,0.177983,56185.0,56177.0,0.356011]
[1725550910497,0.177992,56183.0,56178.0,0.455902]
[1725550910734,0.355967,56185.0,56174.0,0.527261]
[1725550910966,0.0192551,56189.0,56171.0,0.001626]
[1725550910967,0.534073,56172.0,56171.0,0.001626]
[1725550911202,0.1896,56181.0,56171.0,0.001626]
[1725550911203,0.27021428,56179.0,56171.0,0.001626]
[1725550911451,0.534073,56172.0,56171.0,0.001626]
[1725550911657,0.890122,56172.0,56171.0,0.001626]
[1725550912373,0.178024,56172.0,56171.0,0.001626]
[1725550912607,0.178,56180.0,56174.0,0.356036]
[1725550912832,0.178,56180.0,56171.0,0.44263696]
[1725550912833,0.177991,56183.0,56175.0,0.37627087]
[1725550913082,0.356971,56185.0,56176.0,0.356022]
[1725550913379,0.177985,56185.0,56181.0,0.177995]
[1725550913596,0.177981,56186.0,56182.0,0.466992]
[1725550913791,0.177984,56185.0,56182.0,0.289]
[1725550914001,0.62617128,56187.0,56182.0,0.289]
[1725550914229,0.177987,56184.0,56182.0,0.289]
[1725550915122,0.62617128,56187.0,56182.0,0.289]
[1725550915339,0.177984,56185.0,56182.0,0.294]
[1725550915562,0.17798,56186.0,56182.0,0.471991]
[1725550915806,0.17798,56186.0,56182.0,0.466991]
[1725550916018,0.177989,56183.0,56182.0,0.303]
[1725550916246,1.16016128,56183.0,56182.0,0.023]
[1725550916466,1.51614028,56183.0,56182.0,0.009]
[1725550916687,1.51614028,56183.0,56182.0,0.023]
[1725550917175,1.51614028,56183.0,56182.0,0.009]
[1725550917405,0.17801,56177.0,56174.0,0.2813]
[1725550917657,0.356011,56179.0,56174.0,0.459317]
[1725550917884,0.178007,56178.0,56174.0,0.459317]
[1725550918339,0.17801,56177.0,56174.0,0.2813]
[1725550918553,0.001,56177.0,56175.0,0.178014]
[1725550918772,0.001,56177.0,56176.0,0.890057]
[1725550919009,0.001,56177.0,56176.0,1.06556796]
[1725550919246,0.27021428,56187.0,56178.0,0.178003]
[1725550919247,0.177996,56181.0,56178.0,0.178003]
[1725550919715,0.355982,56183.0,56179.0,0.356001]
[1725550919716,0.17799,56183.0,56179.0,0.356001]
[1725550919956,0.177981,56186.0,56182.0,0.17799]
[1725550920167,0.177981,56186.0,56180.0,0.17551096]
[1725550920168,0.35595,56188.0,56181.0,0.35599]
[1725550920397,0.35595,56188.0,56174.0,0.2973]
[1725550920398,0.000815,56189.0,56182.0,0.17551096]
[1725550920642,0.000815,56189.0,56186.0,0.177977]
[1725550920871,0.178786,56189.0,56186.0,0.177977]
[1725550921161,0.000815,56189.0,56185.0,0.355963]
[1725550921384,0.177974,56188.0,56185.0,0.177983]
[1725550922084,0.355957,56187.0,56183.0,0.2885]
[1725550922304,0.355962,56186.0,56184.0,0.17551096]
[1725550922550,0.177997,56181.0,56178.0,0.2709]
[1725550922775,0.178,56180.0,56178.0,0.44641096]
[1725550922999,0.27021428,56182.0,56178.0,0.44641096]
[1725550923215,0.177994,56182.0,56179.0,0.178001]
[1725550923916,0.177984,56185.0,56182.0,0.177991]
[1725550924147,0.355967,56185.0,56183.0,0.005]
[1725550924379,0.53396,56184.0,56183.0,0.005]
[1725550924627,0.53396,56184.0,56178.0,0.462904]
[1725550924628,0.177996,56181.0,56178.0,0.462904]
[1725550924851,0.355974,56184.0,56179.0,0.178]
[1725550925061,0.177993,56182.0,56179.0,0.178]
[1725550925274,0.177989,56183.0,56180.0,0.177996]
[1725550925490,0.000815,56189.0,56182.0,0.355979]
[1725550925720,0.000815,56189.0,56183.0,0.17551096]
[1725550925721,0.177975,56188.0,56183.0,0.17551096]
[1725550925961,0.178786,56189.0,56184.0,0.355972]
[1725550926173,0.177974,56188.0,56185.0,0.177983]
[1725550926394,0.356758,56189.0,56184.0,0.53148196]
[1725550926643,0.177975,56188.0,56185.0,0.17798]
[1725550927079,0.000815,56189.0,56188.0,0.889867]
[1725550927310,0.000815,56189.0,56188.0,1.35327796]
[1725550927590,0.000815,56189.0,56188.0,1.70922496]
[1725550927808,0.000815,56189.0,56188.0,2.35177196]
[1725550928069,0.000815,56189.0,56188.0,2.38177196]
[1725550928561,0.000815,56189.0,56188.0,2.47759434]
[1725550928992,0.000815,56189.0,56188.0,2.38377196]
[1725550929223,0.001815,56189.0,56188.0,2.47759383]
[1725550929659,0.001815,56189.0,56188.0,2.40262503]
[1725550929660,0.000815,56189.0,56188.0,2.40262503]
[1725550929908,0.000815,56189.0,56188.0,2.01582496]
[1725550930160,0.001815,56189.0,56188.0,0.66401096]
[1725550930367,0.535726,56189.0,56188.0,0.014]
[1725550930605,1.16188128,56189.0,56188.0,0.028]
[1725550930865,1.16188128,56189.0,56188.0,0.014]
[1725550931086,1.00354028,56189.0,56188.0,0.014]
[1725550931311,0.80594028,56189.0,56188.0,0.014]
[1725550931529,0.000815,56189.0,56180.0,0.355993]
[1725550931739,0.000815,56189.0,56188.0,0.205973]
[1725550932014,0.000815,56189.0,56188.0,0.83505796]
[1725550932227,0.000815,56189.0,56188.0,2.66638624]
[1725550932486,0.000815,56189.0,56188.0,3.10214646]
[1725550932725,0.000815,56189.0,56188.0,2.82726777]
[1725550933206,0.72742928,56216.0,56188.0,2.82726777]
[1725550933207,0.000815,56216.0,56199.0,1.255573]
[1725550933432,4.70912952,56200.0,56199.0,2.25519824]
[1725550933663,4.70912952,56200.0,56199.0,2.63107624]
[1725550934132,4.70912952,56200.0,56199.0,2.68425955]
[1725550934358,4.70912952,56200.0,56199.0,3.05899518]
[1725550934557,4.70912952,56200.0,56199.0,3.00581187]
[1725550935288,4.70912952,56200.0,56199.0,3.01981187]
[1725550935737,4.70912952,56200.0,56199.0,3.00581187]
[1725550935988,4.70912952,56200.0,56199.0,3.01981187]
[1725550936206,2.40336932,56200.0,56199.0,3.89550415]
[1725550936430,2.40336932,56200.0,56199.0,3.66520415]
[1725550936431,2.06041659,56200.0,56199.0,3.66520415]
[1725550936661,1.99267545,56200.0,56199.0,4.04020415]
[1725550936905,1.75035244,56200.0,56199.0,4.04020415]
[1725550937118,1.72213583,56200.0,56199.0,4.04020415]
[1725550937570,1.72213583,56200.0,56199.0,4.11833072]
[1725550937571,1.1511988,56200.0,56199.0,4.11833072]
[1725550937754,1.1511988,56200.0,56199.0,4.05716415]
[1725550937755,1.1156118,56200.0,56199.0,4.05716415]
[1725550938004,0.9732638,56200.0,56199.0,4.04316415]
[1725550938247,0.9732638,56200.0,56199.0,3.69616415]
[1725550938472,0.9732638,56200.0,56199.0,3.68216415]
[1725550938710,0.9732638,56200.0,56199.0,3.39794987]
[1725550938933,0.8665028,56200.0,56199.0,3.42865437]
[1725550939168,0.7953288,56200.0,56199.0,3.44265437]
[1725550939381,0.6605388,56200.0,56199.0,3.44265437]
[1725550939816,0.45275649,56200.0,56199.0,3.71286865]
[1725550940036,0.41716949,56200.0,56199.0,3.71286865]
[1725550940272,0.38086949,56200.0,56199.0,3.44265437]
[1725550940739,0.28932175,56200.0,56199.0,3.44265437]
[1725550940963,0.18256075,56200.0,56199.0,3.42865437]
[1725550941410,0.18256075,56200.0,56199.0,3.44265437]
[1725550941588,0.18256075,56200.0,56199.0,3.41465437]
[1725550941844,0.000815,56216.0,56215.0,1.988768]
[1725550942066,0.000815,56223.0,56222.0,0.83581228]
[1725550942295,0.000815,56223.0,56222.0,1.82278724]
[1725550942508,0.000815,56223.0,56222.0,2.20151924]
[1725550943667,0.000815,56223.0,56222.0,1.55257296]
[1725550943912,0.000815,56223.0,56222.0,1.55057296]
[1725550945018,0.000815,56223.0,56222.0,1.56457296]
[1725550945744,0.000815,56223.0,56222.0,1.57857296]
[1725550946913,0.000815,56223.0,56222.0,1.93430496]
[1725550947165,0.000815,56223.0,56222.0,2.20451924]
[1725550947336,0.000815,56223.0,56222.0,2.22751924]
[1725550947608,0.000815,56223.0,56222.0,2.58325124]
[1725550947832,0.000815,56223.0,56222.0,2.59995609]
[1725550948060,0.00081,56240.0,56239.0,1.244687]
[1725550948301,0.00081,56240.0,56239.0,1.52019796]
[1725550949448,0.00081,56240.0,56239.0,1.53419796]
[1725550949692,0.00081,56240.0,56239.0,1.53019796]
[1725550950121,0.00081,56240.0,56239.0,1.88582296]
[1725550950341,0.00081,56240.0,56239.0,1.53019796]
[1725550950588,0.00081,56240.0,56239.0,1.52019796]
[1725550950828,0.00081,56240.0,56239.0,1.53019796]
[1725550951033,0.00081,56240.0,56239.0,1.54419796]
[1725550951260,0.00081,56240.0,56239.0,1.55819796]
[1725550951492,0.00081,56240.0,56239.0,1.54419796]
[1725550951730,0.49011,56240.0,56239.0,0.27551096]
[1725550951959,0.49011,56240.0,56239.0,0.20351096]
[1725550952179,1.023537,56240.0,56239.0,0.20351096]
[1725550952608,0.667919,56240.0,56239.0,0.17551096]
[1725550953065,0.49011,56240.0,56239.0,0.18951096]
[1725550953286,0.667919,56240.0,56239.0,0.18951096]
[1725550953501,0.49011,56240.0,56239.0,0.20351096]
[1725550953934,0.845728,56240.0,56239.0,0.20351096]
[1725550954160,1.023537,56240.0,56239.0,0.20351096]
[1725550954412,0.667919,56240.0,56239.0,0.20351096]
[1725550954653,1.379155,56240.0,56239.0,0.028]
[1725550955085,1.023537,56240.0,56239.0,0.028]
[1725550955488,0.667919,56240.0,56239.0,0.028]
[1725550955983,0.355618,56240.0,56239.0,0.028]
[1725550956137,0.889045,56240.0,56239.0,0.028]
[1725550956313,0.533427,56240.0,56239.0,0.028]
[1725550958898,1.030227,56240.0,56239.0,0.028]
[1725550960794,1.385845,56240.0,56239.0,0.028]
[1725550961032,1.385845,56240.0,56231.0,0.2491]
[1725550961033,0.889172,56232.0,56231.0,0.071264]
[1725550961282,0.177859,56224.0,56223.0,0.00163]
[1725550961515,1.65301128,56224.0,56223.0,0.00163]
[1725550962207,0.94157328,56224.0,56223.0,0.00163]
[1725550962451,0.94157328,56224.0,56223.0,0.36900396]
[1725550962452,0.4935,56224.0,56223.0,0.36900396]
[1725550962675,0.4935,56224.0,56223.0,0.72472996]
[1725550962892,0.4935,56224.0,56223.0,0.71072996]
[1725550963352,0.4935,56224.0,56223.0,0.36900396]
[1725550963793,0.4935,56224.0,56223.0,0.20784932]
[1725550964022,0.76371428,56224.0,56223.0,0.20784932]
[1725550964254,2.00873028,56224.0,56223.0,0.03233836]
[1725550964504,2.00873028,56224.0,56223.0,0.01563]
[1725550964732,2.00973028,56224.0,56223.0,0.01663]
[1725550964937,1.29829228,56224.0,56223.0,0.19214096]
[1725550965155,0.94257328,56224.0,56223.0,0.20884932]
[1725550965372,0.94257328,56224.0,56223.0,0.17714096]
[1725550965373,0.94157328,56224.0,56223.0,0.17714096]
[1725550965593,1.65401128,56224.0,56223.0,0.20884932]
[1725550965878,1.65401128,56224.0,56223.0,0.19484932]
[1725550965879,1.29829228,56224.0,56223.0,0.19484932]
[1725550966110,1.29829228,56224.0,56223.0,0.19384932]
[1725550966111,1.29729228,56224.0,56223.0,0.19384932]
[1725550966346,1.29829228,56224.0,56223.0,0.19114096]
[1725550966574,1.29829228,56224.0,56223.0,0.17714096]
[1725550966575,1.29729228,56224.0,56223.0,0.17714096]
[1725550966780,1.65301128,56224.0,56223.0,0.17714096]
[1725550967012,2.36544928,56224.0,56223.0,0.01563]
[1725550967215,2.00973028,56224.0,56223.0,0.01563]
[1725550967645,2.01073028,56224.0,56223.0,0.02863]
[1725550968299,2.00973028,56224.0,56223.0,0.01563]
[1725550968511,2.01073028,56224.0,56223.0,0.02763]
[1725550969388,2.38944928,56224.0,56223.0,0.02763]
[1725550970301,2.38944928,56224.0,56223.0,0.01363]
[1725550970302,2.36544928,56224.0,56223.0,0.01363]
[1725550970737,2.36444928,56224.0,56223.0,0.00163]
[1725550970945,2.36444928,56224.0,56223.0,0.00663]
[1725550972303,2.36544928,56224.0,56223.0,0.01863]
[1725550973170,2.36444928,56224.0,56223.0,0.00663]
[1725550973423,2.36544928,56224.0,56223.0,0.01763]
[1725550973649,2.00973028,56224.0,56223.0,0.01763]
[1725550973861,2.00973028,56224.0,56223.0,0.01263]
[1725550974083,2.00973028,56224.0,56223.0,0.01663]
[1725550975163,1.7084047,56224.0,56223.0,0.01663]
[1725550977042,1.3526857,56224.0,56223.0,0.01663]
[1725550977491,1.7084047,56224.0,56223.0,0.01663]
[1725550977705,1.7084047,56224.0,56200.0,0.12427993]
[1725550977706,0.27021428,56207.0,56198.0,0.54321738]
[1725550977967,0.365743,56221.0,56199.0,0.17714096]
[1725550977968,1.15989128,56200.0,56199.0,0.17714096]
[1725550978192,1.63959128,56200.0,56199.0,0.00163]
[1725550978449,1.99546228,56200.0,56199.0,0.00163]
[1725550978686,1.369377,56200.0,56199.0,0.00163]
[1725550978895,1.369377,56200.0,56199.0,0.01463]
[1725550979538,1.369377,56200.0,56199.0,0.01663]
[1725550979539,1.370377,56200.0,56199.0,0.01663]
[1725550979790,1.726248,56200.0,56199.0,0.01663]
[1725550980033,1.725248,56200.0,56199.0,0.013]
[1725550980254,0.177989,56183.0,56182.0,0.476]
[1725550980483,0.27021428,56183.0,56182.0,0.17551096]
[1725550980699,0.44820328,56183.0,56182.0,0.17551096]
[1725550980910,1.16016128,56183.0,56182.0,0.17551096]
[1725550981167,1.51614028,56183.0,56182.0,0.17551096]
[1725550981419,1.51614028,56183.0,56175.0,0.00163]
[1725550981420,0.534034,56176.0,56175.0,0.00163]
[1725550981645,0.534034,56176.0,56175.0,0.17714096]
[1725550981646,0.44822528,56176.0,56175.0,0.17714096]
[1725550981873,0.80424828,56176.0,56175.0,0.17714096]
[1725550982105,0.80424828,56176.0,56175.0,0.00163]
[1725550982106,1.82709428,56176.0,56175.0,0.00163]
[1725550982333,2.45333156,56176.0,56175.0,0.00163]
[1725550982582,2.09730856,56176.0,56175.0,0.00163]
[1725550982804,1.200857,56176.0,56175.0,0.00163]
[1725550983031,1.47107128,56176.0,56175.0,0.00163]
[1725550983252,1.47107128,56176.0,56175.0,0.00363]
[1725550983253,1.47207128,56176.0,56175.0,0.00363]
[1725550983699,1.82709428,56176.0,56175.0,0.00163]
[1725550983927,1.82809428,56176.0,56175.0,0.00263]
[1725550984403,1.82909428,56176.0,56175.0,0.00263]
[1725550984898,1.82809428,56176.0,56175.0,0.00263]
[1725550985112,1.83009428,56176.0,56175.0,0.00263]
[1725550986957,1.82809428,56176.0,56175.0,0.00263]
[1725550987175,1.83309428,56176.0,56175.0,0.00263]
[1725550987844,1.82809428,56176.0,56175.0,0.00263]
[1725550988735,2.64603156,56176.0,56175.0,0.00263]
[1725550988963,2.09719956,56172.0,56171.0,0.001626]
[1725550989183,2.45324856,56172.0,56171.0,0.001626]
[1725550989380,2.63534856,56172.0,56171.0,0.001626]
[1725550990523,2.36513428,56172.0,56171.0,0.001626]
[1725550990777,2.00908528,56172.0,56171.0,0.001626]
[1725550991012,1.47093628,56172.0,56171.0,0.001626]
[1725550991236,1.47293628,56172.0,56171.0,0.001626]
[1725550991685,1.47093628,56172.0,56171.0,0.001626]
[1725550992340,0.27021428,56177.0,56171.0,0.17713696]
[1725550992594,0.178016,56175.0,56172.0,0.17551096]
[1725550992806,0.2875,56180.0,56172.0,0.17451096]
[1725550993027,0.27021428,56177.0,56172.0,0.35253296]
[1725550993240,0.178016,56175.0,56172.0,0.17451096]
[1725550993698,0.178018,56174.0,56172.0,0.17451096]
[1725550994143,0.178018,56174.0,56172.0,0.17551096]
[1725550994372,0.001,56175.0,56172.0,0.35811096]
[1725550994870,0.001,56175.0,56172.0,0.17551096]
[1725550994871,0.80427728,56173.0,56172.0,0.17551096]
[1725550995093,0.80427728,56173.0,56172.0,0.001]
[1725550995094,1.98696128,56173.0,56172.0,0.001]
[1725550995581,2.34300328,56173.0,56172.0,0.001]
[1725550995820,2.61321756,56173.0,56172.0,0.001]
[1725550996041,2.73621756,56173.0,56172.0,0.001]
[1725550996283,2.73621756,56173.0,56171.0,0.001626]
[1725550996284,1.88972,56172.0,56171.0,0.001626]
[1725550996552,2.368769,56172.0,56171.0,0.001626]
[1725550997027,2.01257431,56172.0,56171.0,0.001626]
[1725550997234,1.88957431,56172.0,56171.0,0.001626]
[1725550997900,1.88957431,56172.0,56171.0,0.003626]
[1725550998135,1.17747631,56172.0,56171.0,0.003626]
[1725550998367,0.53392731,56172.0,56171.0,0.003626]
[1725550998594,0.88997631,56172.0,56171.0,0.003626]
[1725550999273,1.24602531,56172.0,56171.0,0.003626]
[1725550999498,0.88997631,56172.0,56171.0,0.003626]
[1725550999740,0.89097631,56172.0,56171.0,0.013626]
[1725551000383,2.01633959,56172.0,56171.0,0.013626]
[1725551000675,2.01633959,56172.0,56166.0,0.00162]
[1725551000676,1.19021228,56172.0,56166.0,0.00162]
[1725551000923,2.18777428,56167.0,56166.0,0.00162]
[1725551002959,2.76095428,56167.0,56162.0,0.00162]
[1725551003184,1.87269128,56163.0,56162.0,0.00162]
[1725551003409,1.246437,56160.0,56159.0,0.00162]
[1725551003646,1.554749,56155.0,56154.0,0.00162]
[1725551003878,2.46342028,56155.0,56154.0,0.00162]
[1725551004165,2.27367756,56146.0,56145.0,0.00164]
[1725551004385,2.62989156,56146.0,56145.0,0.00164]
[1725551004604,2.10346328,56146.0,56145.0,0.00164]
[1725551004832,2.00346328,56146.0,56145.0,0.00164]
[1725551005266,2.37829487,56146.0,56145.0,0.00164]
[1725551005496,1.16074928,56146.0,56145.0,0.00164]
[1725551006135,1.16074928,56146.0,56145.0,0.17715096]
[1725551006350,0.27121428,56146.0,56145.0,0.17715096]